[Event "*** Titled Tuesday Blitz"]
[Site "Chess.com"]
[Date "2019.07.02"]
[Round "7"]
[White "kosya4ok"]
[Black "platy3"]
[Result "0-1"]
[WhiteElo "2760"]
[BlackElo "2828"]
[TimeControl "180+2"]
[EndTime "14:38:57 PDT"]
[Termination "platy3 won on time"]

1. d4 {[%clk 0:03:01.9]} 1... Nf6 {[%clk 0:03:00.1]} 2. c4 {[%clk 0:03:02.3]}
2... e6 {[%clk 0:03:01.2]} 3. Nf3 {[%clk 0:03:02.6]} 3... d5 {[%clk 0:03:01.2]}
4. Nc3 {[%clk 0:03:03.8]} 4... dxc4 {[%clk 0:03:02.4]} 5. e4 {[%clk 0:03:03]}
5... b5 {[%clk 0:03:03.6]} 6. e5 {[%clk 0:03:03.2]} 6... Nd5 {[%clk 0:03:05]} 7.
Nxb5 {[%clk 0:03:04.3]} 7... Nb6 {[%clk 0:03:06.5]} 8. Be2 {[%clk 0:03:03.6]}
8... Nc6 {[%clk 0:03:07.7]} 9. O-O {[%clk 0:03:03.6]} 9... Be7 {[%clk
0:03:09.1]} 10. Qd2 {[%clk 0:03:05]} 10... Bb7 {[%clk 0:02:56.7]} 11. Qf4 {[%clk
0:03:05.1]} 11... Qd7 {[%clk 0:02:58.1]} 12. Nc3 {[%clk 0:03:03.1]} 12... O-O-O
{[%clk 0:02:58]} 13. Rd1 {[%clk 0:03:03.8]} 13... Nb4 {[%clk 0:02:57.7]} 14.
Qxf7 {[%clk 0:02:41.5]} 14... Rdf8 {[%clk 0:02:36.4]} 15. Qh5 {[%clk 0:02:34]}
15... Rf5 {[%clk 0:02:35.4]} 16. Qg4 {[%clk 0:02:31]} 16... Qe8 {[%clk
0:02:20.3]} 17. h4 {[%clk 0:02:23.6]} 17... h5 {[%clk 0:02:16.9]} 18. Qg3 {[%clk
0:02:22.6]} 18... Rhf8 {[%clk 0:02:06.6]} 19. Be3 {[%clk 0:01:52.2]} 19... Nd3
{[%clk 0:02:01.3]} 20. b3 {[%clk 0:01:46.5]} 20... Nf4 {[%clk 0:01:56.1]} 21.
Bxf4 {[%clk 0:01:40.8]} 21... Rxf4 {[%clk 0:01:57.3]} 22. bxc4 {[%clk
0:01:36.7]} 22... Rg4 {[%clk 0:01:44.4]} 23. Qh3 {[%clk 0:01:34.9]} 23... Qg6
{[%clk 0:01:14.1]} 24. d5 {[%clk 0:01:28.8]} 24... Bc5 {[%clk 0:01:15.5]} 25.
Bd3 {[%clk 0:01:08.9]} 25... Qf7 {[%clk 0:01:09.8]} 26. Ne4 {[%clk 0:01:10.3]}
26... Be7 {[%clk 0:01:02.8]} 27. Nfg5 {[%clk 0:00:46.6]} 27... Bxg5 {[%clk
0:00:52.6]} 28. hxg5 {[%clk 0:00:47.6]} 28... exd5 {[%clk 0:00:40.5]} 29. cxd5
{[%clk 0:00:47.9]} 29... Nxd5 {[%clk 0:00:41.9]} 30. Be2 {[%clk 0:00:36.3]}
30... Qf4 {[%clk 0:00:30.7]} 31. Bxg4+ {[%clk 0:00:23.7]} 31... hxg4 {[%clk
0:00:32.6]} 32. Qd3 {[%clk 0:00:21]} 32... Rh8 {[%clk 0:00:31.2]} 33. Ng3 {[%clk
0:00:19.2]} 33... Qxg5 {[%clk 0:00:13.2]} 34. Rab1 {[%clk 0:00:19.3]} 34... Nf4
{[%clk 0:00:12.8]} 35. Qd7+ {[%clk 0:00:16.7]} 35... Kb8 {[%clk 0:00:14.3]} 36.
Rxb7+ {[%clk 0:00:17.5]} 36... Ka8 {[%clk 0:00:15.2]} 37. Rdb1 {[%clk 0:00:19]}
37... Qh6 {[%clk 0:00:12.4]} 38. Rb8+ {[%clk 0:00:20.3]} 38... Rxb8 {[%clk
0:00:13.3]} 39. Rxb8+ {[%clk 0:00:18.7]} 39... Kxb8 {[%clk 0:00:14.7]} 40. Qxg4
{[%clk 0:00:19.5]} 40... g5 {[%clk 0:00:15.9]} 41. Ne4 {[%clk 0:00:15.6]} 41...
Qc6 {[%clk 0:00:16.5]} 42. Nxg5 {[%clk 0:00:15.5]} 42... Nd3 {[%clk 0:00:16.6]}
43. Ne4 {[%clk 0:00:08.7]} 43... Nxe5 {[%clk 0:00:13.9]} 44. Qg8+ {[%clk
0:00:09.9]} 44... Kb7 {[%clk 0:00:14.5]} 45. Qb3+ {[%clk 0:00:11.8]} 45... Kc8
{[%clk 0:00:15.8]} 46. f3 {[%clk 0:00:13.1]} 46... Qc1+ {[%clk 0:00:16.9]} 47.
Kf2 {[%clk 0:00:13.9]} 47... Qc6 {[%clk 0:00:16.7]} 48. Qg8+ {[%clk 0:00:14.5]}
48... Kb7 {[%clk 0:00:17.8]} 49. Qb3+ {[%clk 0:00:16.4]} 49... Kc8 {[%clk
0:00:19.2]} 50. Qc3 {[%clk 0:00:16.8]} 50... Qb6+ {[%clk 0:00:18.9]} 51. Kg3
{[%clk 0:00:17.9]} 51... Qg6+ {[%clk 0:00:19.6]} 52. Kf2 {[%clk 0:00:19.1]}
52... Qb6+ {[%clk 0:00:20.5]} 53. Ke2 {[%clk 0:00:12.5]} 53... Qa6+ {[%clk
0:00:21.3]} 54. Ke3 {[%clk 0:00:13.8]} 54... Nc4+ {[%clk 0:00:15.1]} 55. Kd4
{[%clk 0:00:14.8]} 55... Nb6 {[%clk 0:00:10.2]} 56. a3 {[%clk 0:00:15.9]} 56...
Qa4+ {[%clk 0:00:08.9]} 57. Ke5 {[%clk 0:00:14.3]} 57... Nc4+ {[%clk 0:00:07.7]}
58. Kf4 {[%clk 0:00:13.7]} 58... Nxa3 {[%clk 0:00:03.5]} 59. Qh8+ {[%clk
0:00:14.6]} 59... Kb7 {[%clk 0:00:03.3]} 60. g4 {[%clk 0:00:15.4]} 60... Nb5
{[%clk 0:00:04.7]} 61. g5 {[%clk 0:00:14]} 61... Nd6 {[%clk 0:00:05.8]} 62. g6
{[%clk 0:00:15.1]} 62... Qd7 {[%clk 0:00:04.6]} 63. Qb2+ {[%clk 0:00:14.9]}
63... Kc8 {[%clk 0:00:05.5]} 64. Qh8+ {[%clk 0:00:16.1]} 64... Ne8 {[%clk
0:00:06.3]} 65. Qf8 {[%clk 0:00:06.1]} 65... a5 {[%clk 0:00:06.3]} 66. Nf6
{[%clk 0:00:04.4]} 66... Qd4+ {[%clk 0:00:06.6]} 67. Kf5 {[%clk 0:00:05.2]}
67... Qd3+ {[%clk 0:00:06.9]} 68. Kg5 {[%clk 0:00:05.6]} 68... Qe3+ {[%clk
0:00:08.2]} 69. f4 {[%clk 0:00:06.2]} 69... Qg3+ {[%clk 0:00:09.2]} 70. Kf5
{[%clk 0:00:04.1]} 70... Qh3+ {[%clk 0:00:10.5]} 0-1

[Event "*** Titled Tuesday Blitz"]
[Site "Chess.com"]
[Date "2019.07.02"]
[Round "7"]
[White "tteshan"]
[Black "vova-79"]
[Result "0-1"]
[WhiteElo "2227"]
[BlackElo "2399"]
[TimeControl "180+2"]
[EndTime "14:38:57 PDT"]
[Termination "vova-79 won by resignation"]

1. d4 {[%clk 0:03:01.9]} 1... d5 {[%clk 0:02:59.9]} 2. c4 {[%clk 0:03:02.6]}
2... c6 {[%clk 0:03:00.3]} 3. Nc3 {[%clk 0:03:03.5]} 3... Nf6 {[%clk 0:03:00.4]}
4. e3 {[%clk 0:03:04.7]} 4... e6 {[%clk 0:03:01]} 5. Bd3 {[%clk 0:03:04.4]} 5...
Nbd7 {[%clk 0:02:58.5]} 6. Nf3 {[%clk 0:03:04.7]} 6... dxc4 {[%clk 0:02:57.7]}
7. Bxc4 {[%clk 0:03:04.8]} 7... b5 {[%clk 0:02:59.4]} 8. Bd3 {[%clk 0:03:05.5]}
8... Bb7 {[%clk 0:02:59.4]} 9. O-O {[%clk 0:03:05.6]} 9... a6 {[%clk 0:02:37]}
10. a4 {[%clk 0:03:05.7]} 10... b4 {[%clk 0:02:35.4]} 11. Ne2 {[%clk 0:03:05.5]}
11... c5 {[%clk 0:02:33.8]} 12. Ng3 {[%clk 0:02:54.5]} 12... Ke7 {[%clk
0:02:22.6]} 13. b3 {[%clk 0:02:44.5]} 13... g6 {[%clk 0:02:19.9]} 14. Bb2 {[%clk
0:02:43.1]} 14... Bg7 {[%clk 0:02:20.9]} 15. Qe2 {[%clk 0:02:34.8]} 15... Qb6
{[%clk 0:02:19.5]} 16. Rac1 {[%clk 0:02:27.2]} 16... Rhd8 {[%clk 0:02:17.6]} 17.
Rfd1 {[%clk 0:02:24.7]} 17... Kf8 {[%clk 0:02:17.3]} 18. dxc5 {[%clk 0:02:17]}
18... Nxc5 {[%clk 0:02:16.3]} 19. Bd4 {[%clk 0:02:14.9]} 19... Rac8 {[%clk
0:01:58.8]} 20. Bb1 {[%clk 0:01:57]} 20... Nd5 {[%clk 0:01:54.9]} 21. Bxg7+
{[%clk 0:01:39.4]} 21... Kxg7 {[%clk 0:01:54.2]} 22. Qb2+ {[%clk 0:01:41.3]}
22... Nc3 {[%clk 0:01:52.1]} 23. Ne2 {[%clk 0:01:19.2]} 23... Rxd1+ {[%clk
0:01:11.5]} 24. Rxd1 {[%clk 0:01:19.7]} 24... Kg8 {[%clk 0:01:12.1]} 25. Nxc3
{[%clk 0:01:16]} 25... bxc3 {[%clk 0:01:12.5]} 26. Qxc3 {[%clk 0:01:04.2]} 26...
Nxa4 {[%clk 0:01:07.8]} 27. Qf6 {[%clk 0:00:59.8]} 27... Nc3 {[%clk 0:01:05.3]}
28. Re1 {[%clk 0:00:58]} 28... Nd5 {[%clk 0:00:52.5]} 29. Qd4 {[%clk 0:00:44.3]}
29... Qxb3 {[%clk 0:00:49.1]} 30. Nd2 {[%clk 0:00:32.8]} 30... Qc3 {[%clk
0:00:47.4]} 31. Qxc3 {[%clk 0:00:26]} 31... Nxc3 {[%clk 0:00:46.2]} 32. f3
{[%clk 0:00:21.4]} 32... Rd8 {[%clk 0:00:39.4]} 33. Nc4 {[%clk 0:00:21]} 33...
Bd5 {[%clk 0:00:39.2]} 34. Nb6 {[%clk 0:00:20.9]} 34... Bb3 {[%clk 0:00:38.2]}
35. Kf2 {[%clk 0:00:14.3]} 35... Rd6 {[%clk 0:00:33.9]} 36. Nc8 {[%clk
0:00:14.9]} 36... Rd2+ {[%clk 0:00:31.2]} 37. Kg3 {[%clk 0:00:15]} 37... a5
{[%clk 0:00:29.4]} 38. Ne7+ {[%clk 0:00:15.8]} 38... Kf8 {[%clk 0:00:29]} 39.
Nc6 {[%clk 0:00:17.2]} 39... a4 {[%clk 0:00:29.5]} 40. Nd4 {[%clk 0:00:14.8]}
40... Bd5 {[%clk 0:00:24]} 41. Rc1 {[%clk 0:00:11.7]} 41... Ne2+ {[%clk
0:00:16.2]} 42. Nxe2 {[%clk 0:00:12.3]} 42... Rxe2 {[%clk 0:00:18.1]} 43. Rc8+
{[%clk 0:00:12.5]} 43... Kg7 {[%clk 0:00:18.4]} 44. Rc3 {[%clk 0:00:09.7]} 44...
Rb2 {[%clk 0:00:16.3]} 45. Bd3 {[%clk 0:00:10]} 45... Rb3 {[%clk 0:00:16.8]} 46.
Rxb3 {[%clk 0:00:10]} 46... Bxb3 {[%clk 0:00:17]} 47. e4 {[%clk 0:00:06.8]}
47... a3 {[%clk 0:00:17.3]} 48. Bb1 {[%clk 0:00:08.1]} 48... e5 {[%clk
0:00:17.8]} 49. Kf2 {[%clk 0:00:08.5]} 49... Kf6 {[%clk 0:00:17.4]} 50. Ke3
{[%clk 0:00:09.5]} 50... Ke7 {[%clk 0:00:17.8]} 51. Kd3 {[%clk 0:00:10.8]} 51...
a2 {[%clk 0:00:18.5]} 52. Bxa2 {[%clk 0:00:11]} 52... Bxa2 {[%clk 0:00:20.4]}
53. g3 {[%clk 0:00:12.3]} 53... Kd6 {[%clk 0:00:20]} 54. Ke3 {[%clk 0:00:13.1]}
54... f6 {[%clk 0:00:20.1]} 55. h4 {[%clk 0:00:13.5]} 55... Bb1 {[%clk
0:00:19.7]} 56. f4 {[%clk 0:00:13.4]} 56... exf4+ {[%clk 0:00:18.6]} 57. gxf4
{[%clk 0:00:15.3]} 57... f5 {[%clk 0:00:19]} 58. e5+ {[%clk 0:00:15.2]} 58...
Kd5 {[%clk 0:00:19.5]} 59. Kf3 {[%clk 0:00:15.1]} 59... Kd4 {[%clk 0:00:17.5]}
60. e6 {[%clk 0:00:13.6]} 60... Be4+ {[%clk 0:00:16.5]} 61. Kg3 {[%clk
0:00:14.3]} 61... Bc6 {[%clk 0:00:18.4]} 62. h5 {[%clk 0:00:14.9]} 62... gxh5
{[%clk 0:00:16.8]} 63. Kh4 {[%clk 0:00:16.2]} 63... Kd5 {[%clk 0:00:17.8]} 64.
e7 {[%clk 0:00:16]} 64... Ke6 {[%clk 0:00:17.9]} 65. Kxh5 {[%clk 0:00:17.1]}
65... Kxe7 {[%clk 0:00:18.3]} 66. Kh6 {[%clk 0:00:18.5]} 66... Ke6 {[%clk
0:00:18.6]} 67. Kxh7 {[%clk 0:00:19.7]} 67... Kd5 {[%clk 0:00:19]} 68. Kg6
{[%clk 0:00:21]} 68... Ke4 {[%clk 0:00:20.2]} 69. Kg5 {[%clk 0:00:22]} 69... Bd7
{[%clk 0:00:20.1]} 0-1

[Event "*** Titled Tuesday Blitz"]
[Site "Chess.com"]
[Date "2019.07.02"]
[Round "7"]
[White "GrigorGrigorov"]
[Black "TST2014"]
[Result "1-0"]
[WhiteElo "2781"]
[BlackElo "2571"]
[TimeControl "180+2"]
[EndTime "14:39:00 PDT"]
[Termination "GrigorGrigorov won on time"]

1. d4 {[%clk 0:03:01.9]} 1... Nf6 {[%clk 0:03:00.5]} 2. c4 {[%clk 0:03:02.5]}
2... d6 {[%clk 0:03:01.5]} 3. Nf3 {[%clk 0:03:03.3]} 3... g6 {[%clk 0:03:01]} 4.
g3 {[%clk 0:03:04.4]} 4... Bg7 {[%clk 0:03:02.2]} 5. Bg2 {[%clk 0:03:05.6]} 5...
O-O {[%clk 0:03:03.9]} 6. O-O {[%clk 0:03:06.8]} 6... Bf5 {[%clk 0:03:01.4]} 7.
Qb3 {[%clk 0:02:48.6]} 7... Qc8 {[%clk 0:03:02.1]} 8. Nc3 {[%clk 0:02:41.6]}
8... Nc6 {[%clk 0:02:49.9]} 9. d5 {[%clk 0:02:19.4]} 9... Nb8 {[%clk 0:02:47.7]}
10. Nd4 {[%clk 0:02:13.7]} 10... Bh3 {[%clk 0:02:40.1]} 11. e4 {[%clk
0:01:51.4]} 11... Na6 {[%clk 0:02:30.4]} 12. Qd1 {[%clk 0:01:49.6]} 12... Nc5
{[%clk 0:02:28]} 13. f3 {[%clk 0:01:47.2]} 13... a5 {[%clk 0:02:23.1]} 14. Be3
{[%clk 0:01:46.5]} 14... h5 {[%clk 0:02:17.2]} 15. Qd2 {[%clk 0:01:41.4]} 15...
h4 {[%clk 0:02:03.4]} 16. g4 {[%clk 0:01:29.9]} 16... Bxg2 {[%clk 0:02:02.1]}
17. Qxg2 {[%clk 0:01:27.3]} 17... Nfd7 {[%clk 0:01:35.7]} 18. Rad1 {[%clk
0:01:22.8]} 18... Nb6 {[%clk 0:01:34]} 19. Qe2 {[%clk 0:01:17.2]} 19... e5
{[%clk 0:01:25.8]} 20. Ndb5 {[%clk 0:01:14.1]} 20... f5 {[%clk 0:01:15]} 21.
gxf5 {[%clk 0:01:12.7]} 21... gxf5 {[%clk 0:01:16.1]} 22. Bxc5 {[%clk
0:01:00.6]} 22... dxc5 {[%clk 0:01:15.8]} 23. exf5 {[%clk 0:00:49.3]} 23... Rxf5
{[%clk 0:01:02.8]} 24. Ne4 {[%clk 0:00:50]} 24... Qd7 {[%clk 0:00:50.3]} 25.
Nxc5 {[%clk 0:00:46.3]} 25... Qf7 {[%clk 0:00:45.1]} 26. Ne6 {[%clk 0:00:40.2]}
26... Rc8 {[%clk 0:00:22.5]} 27. Kh1 {[%clk 0:00:41.2]} 27... Bh6 {[%clk
0:00:22.8]} 28. Rg1+ {[%clk 0:00:35.7]} 28... Kh8 {[%clk 0:00:23.8]} 29. Qe4
{[%clk 0:00:33.9]} 29... Rg8 {[%clk 0:00:16]} 30. Qxh4 {[%clk 0:00:30.5]} 30...
Rh5 {[%clk 0:00:14.2]} 31. Rxg8+ {[%clk 0:00:31.2]} 31... Kxg8 {[%clk
0:00:15.7]} 32. Rg1+ {[%clk 0:00:31.2]} 32... Kh8 {[%clk 0:00:16.6]} 33. Qg4
{[%clk 0:00:27.4]} 33... Bf4 {[%clk 0:00:14.2]} 34. h4 {[%clk 0:00:21.6]} 34...
Nxc4 {[%clk 0:00:15]} 35. Nbxc7 {[%clk 0:00:21.6]} 35... Ne3 {[%clk 0:00:15.4]}
36. Nd8 {[%clk 0:00:20.1]} 36... Nxg4 {[%clk 0:00:07.8]} 37. Nxf7+ {[%clk
0:00:20.8]} 37... Kg7 {[%clk 0:00:09.2]} 38. Rxg4+ {[%clk 0:00:21.2]} 38... Kxf7
{[%clk 0:00:10.6]} 39. Ne6 {[%clk 0:00:22.2]} 39... Ke7 {[%clk 0:00:10.9]} 40.
Nxf4 {[%clk 0:00:22.8]} 40... exf4 {[%clk 0:00:12.1]} 41. Rxf4 {[%clk 0:00:24]}
41... Rxd5 {[%clk 0:00:13.7]} 42. Re4+ {[%clk 0:00:21.1]} 42... Kf6 {[%clk
0:00:13.9]} 43. Re2 {[%clk 0:00:21.7]} 43... Rd4 {[%clk 0:00:09.8]} 44. Kg2
{[%clk 0:00:18.6]} 44... Rxh4 {[%clk 0:00:10]} 45. Kg3 {[%clk 0:00:19.7]} 45...
Ra4 {[%clk 0:00:10.3]} 46. b3 {[%clk 0:00:20.1]} 46... Rd4 {[%clk 0:00:11.7]}
47. Re4 {[%clk 0:00:14.1]} 47... Rd2 {[%clk 0:00:11.2]} 48. Ra4 {[%clk
0:00:12.3]} 48... b6 {[%clk 0:00:11.7]} 49. Kf4 {[%clk 0:00:13.3]} 49... Rd5
{[%clk 0:00:10.4]} 50. Ke4 {[%clk 0:00:13.1]} 50... Re5+ {[%clk 0:00:11.5]} 51.
Kd3 {[%clk 0:00:14.1]} 51... Rd5+ {[%clk 0:00:12.7]} 52. Rd4 {[%clk 0:00:14.5]}
52... Rb5 {[%clk 0:00:11.4]} 53. Kc4 {[%clk 0:00:10.5]} 53... Rc5+ {[%clk
0:00:11.9]} 54. Kd3 {[%clk 0:00:12]} 54... Rb5 {[%clk 0:00:09.9]} 55. f4 {[%clk
0:00:11]} 55... Kf5 {[%clk 0:00:10.3]} 56. Kc3 {[%clk 0:00:10.8]} 56... Rc5+
{[%clk 0:00:11]} 57. Kb2 {[%clk 0:00:07.8]} 57... b5 {[%clk 0:00:11]} 58. a3
{[%clk 0:00:07.5]} 58... Kg4 {[%clk 0:00:10.6]} 59. b4 {[%clk 0:00:06.7]} 59...
axb4 {[%clk 0:00:11]} 60. axb4 {[%clk 0:00:07.8]} 60... Rf5 {[%clk 0:00:08.6]}
61. Kc3 {[%clk 0:00:08]} 61... Kf3 {[%clk 0:00:06.9]} 62. Kd3 {[%clk 0:00:09.4]}
62... Kg4 {[%clk 0:00:07]} 63. Ke3 {[%clk 0:00:09.8]} 63... Kg3 {[%clk
0:00:07.9]} 64. Rd8 {[%clk 0:00:09.8]} 64... Rxf4 {[%clk 0:00:02.6]} 65. Rg8+
{[%clk 0:00:11.1]} 65... Rg4 {[%clk 0:00:04.3]} 66. Rxg4+ {[%clk 0:00:12.6]}
66... Kxg4 {[%clk 0:00:06]} 67. Kd4 {[%clk 0:00:14.5]} 67... Kf5 {[%clk
0:00:07.7]} 68. Kc5 {[%clk 0:00:16.4]} 68... Ke6 {[%clk 0:00:09.5]} 69. Kxb5
{[%clk 0:00:18]} 69... Kd7 {[%clk 0:00:11.2]} 70. Kb6 {[%clk 0:00:18.9]} 70...
Kc8 {[%clk 0:00:12.3]} 71. b5 {[%clk 0:00:19.9]} 71... Kb8 {[%clk 0:00:13.7]}
72. Ka6 {[%clk 0:00:21.1]} 72... Ka8 {[%clk 0:00:14.9]} 73. b6 {[%clk
0:00:22.2]} 73... Kb8 {[%clk 0:00:16.6]} 74. b7 {[%clk 0:00:23.4]} 1-0

[Event "*** Titled Tuesday Blitz"]
[Site "Chess.com"]
[Date "2019.07.02"]
[Round "7"]
[White "Aleksandr_Kholin"]
[Black "swisspower96"]
[Result "0-1"]
[WhiteElo "2392"]
[BlackElo "2740"]
[TimeControl "180+2"]
[EndTime "14:40:10 PDT"]
[Termination "swisspower96 won by resignation"]

1. Nf3 {[%clk 0:02:59.2]} 1... d5 {[%clk 0:02:58.5]} 2. g3 {[%clk 0:03:00.6]}
2... c6 {[%clk 0:02:58.1]} 3. Bg2 {[%clk 0:03:02.5]} 3... Bg4 {[%clk 0:02:59.7]}
4. O-O {[%clk 0:03:02.7]} 4... Nd7 {[%clk 0:03:00.9]} 5. h3 {[%clk 0:03:03.5]}
5... Bh5 {[%clk 0:03:01.8]} 6. d4 {[%clk 0:03:04.7]} 6... e6 {[%clk 0:03:01.7]}
7. Be3 {[%clk 0:03:06.2]} 7... Ngf6 {[%clk 0:02:54.1]} 8. Nbd2 {[%clk
0:03:07.5]} 8... Be7 {[%clk 0:02:50.7]} 9. Ne5 {[%clk 0:03:07.2]} 9... O-O
{[%clk 0:02:48.6]} 10. Ndf3 {[%clk 0:03:05.6]} 10... Nb6 {[%clk 0:02:33.5]} 11.
Rc1 {[%clk 0:02:59]} 11... Bg6 {[%clk 0:02:30.9]} 12. Nxg6 {[%clk 0:02:52.4]}
12... hxg6 {[%clk 0:02:32.3]} 13. Ne5 {[%clk 0:02:54.3]} 13... Bd6 {[%clk
0:02:28.3]} 14. f4 {[%clk 0:02:54.1]} 14... Ne4 {[%clk 0:02:26.8]} 15. Bxe4
{[%clk 0:02:47.7]} 15... dxe4 {[%clk 0:02:28]} 16. c4 {[%clk 0:02:49.6]} 16...
Qe8 {[%clk 0:02:25.2]} 17. c5 {[%clk 0:02:40.8]} 17... Nd5 {[%clk 0:02:25.4]}
18. Qb3 {[%clk 0:02:35]} 18... Bc7 {[%clk 0:02:18.7]} 19. Bf2 {[%clk 0:02:14.1]}
19... f6 {[%clk 0:02:08.8]} 20. Nc4 {[%clk 0:02:13.7]} 20... Rb8 {[%clk
0:02:06.2]} 21. e3 {[%clk 0:02:12.4]} 21... Qe7 {[%clk 0:01:57.6]} 22. Qa3
{[%clk 0:02:10.5]} 22... a6 {[%clk 0:01:58]} 23. b4 {[%clk 0:02:10.5]} 23... f5
{[%clk 0:01:54.7]} 24. h4 {[%clk 0:02:08.7]} 24... Nf6 {[%clk 0:01:51.1]} 25.
Qb3 {[%clk 0:02:05.9]} 25... Rfd8 {[%clk 0:01:47.3]} 26. a4 {[%clk 0:02:05.1]}
26... Qe8 {[%clk 0:01:44.3]} 27. Kg2 {[%clk 0:02:03.4]} 27... Ng4 {[%clk
0:01:44.4]} 28. Rb1 {[%clk 0:02:02.1]} 28... b5 {[%clk 0:01:22]} 29. cxb6 {[%clk
0:01:52.7]} 29... Bxb6 {[%clk 0:01:23.3]} 30. Rfc1 {[%clk 0:01:42]} 30... Bc7
{[%clk 0:01:19.7]} 31. Qa2 {[%clk 0:01:39.4]} 31... Rd5 {[%clk 0:01:16.7]} 32.
Rc2 {[%clk 0:01:22.3]} 32... Qe7 {[%clk 0:00:48.7]} 33. Be1 {[%clk 0:01:18.8]}
33... Kf7 {[%clk 0:00:42.6]} 34. Rcb2 {[%clk 0:01:10.8]} 34... Qe8 {[%clk
0:00:39]} 35. Qa3 {[%clk 0:01:09.1]} 35... Kg8 {[%clk 0:00:36.3]} 36. Rb3 {[%clk
0:01:08.7]} 36... Bd8 {[%clk 0:00:26.9]} 37. Qa2 {[%clk 0:01:07.1]} 37... Be7
{[%clk 0:00:24.7]} 38. Qb2 {[%clk 0:01:05.8]} 38... Qf7 {[%clk 0:00:24]} 39. Kh3
{[%clk 0:01:05.5]} 39... g5 {[%clk 0:00:22.7]} 40. fxg5 {[%clk 0:00:57.5]} 40...
Qh5 {[%clk 0:00:23.7]} 41. Kg2 {[%clk 0:00:53.2]} 41... Kf7 {[%clk 0:00:18.3]}
42. b5 {[%clk 0:00:46.1]} 42... axb5 {[%clk 0:00:19.1]} 43. axb5 {[%clk
0:00:47.1]} 43... Rbxb5 {[%clk 0:00:19.5]} 44. Rxb5 {[%clk 0:00:47.1]} 44...
cxb5 {[%clk 0:00:21]} 45. Ne5+ {[%clk 0:00:45.3]} 45... Nxe5 {[%clk 0:00:22.1]}
46. dxe5 {[%clk 0:00:47.2]} 46... Qf3+ {[%clk 0:00:23.6]} 47. Kh3 {[%clk
0:00:47.4]} 47... Qxe3 {[%clk 0:00:22.9]} 48. Qf2 {[%clk 0:00:44.4]} 48... Qxf2
{[%clk 0:00:22.2]} 49. Bxf2 {[%clk 0:00:45.3]} 49... Rxe5 {[%clk 0:00:23.2]} 50.
Rc1 {[%clk 0:00:42]} 50... b4 {[%clk 0:00:21.5]} 51. Rc7 {[%clk 0:00:42.2]}
51... e3 {[%clk 0:00:22.7]} 52. Be1 {[%clk 0:00:42.2]} 52... Re4 {[%clk
0:00:21.7]} 53. Rb7 {[%clk 0:00:40.3]} 53... e2 {[%clk 0:00:21.5]} 54. h5 {[%clk
0:00:37.2]} 54... Ke8 {[%clk 0:00:20.7]} 55. h6 {[%clk 0:00:37.6]} 55... gxh6
{[%clk 0:00:21.7]} 56. gxh6 {[%clk 0:00:38]} 56... Bf6 {[%clk 0:00:21.5]} 57. h7
{[%clk 0:00:39.3]} 57... Rc4 {[%clk 0:00:22]} 58. Rb8+ {[%clk 0:00:19.8]} 58...
Kf7 {[%clk 0:00:22.8]} 59. h8=Q {[%clk 0:00:18.3]} 59... Bxh8 {[%clk 0:00:23.8]}
60. Rxh8 {[%clk 0:00:19.9]} 60... b3 {[%clk 0:00:22.9]} 61. Rb8 {[%clk
0:00:20.2]} 61... Rc1 {[%clk 0:00:23.9]} 62. Bf2 {[%clk 0:00:19.3]} 62... Rf1
{[%clk 0:00:24.4]} 63. Kg2 {[%clk 0:00:20.1]} 63... Rb1 {[%clk 0:00:24.3]} 64.
Kf3 {[%clk 0:00:20]} 64... e1=Q {[%clk 0:00:21.8]} 65. Bxe1 {[%clk 0:00:21.4]}
65... Rxe1 {[%clk 0:00:23.7]} 66. Rxb3 {[%clk 0:00:22.3]} 66... Kf6 {[%clk
0:00:25.4]} 67. Rc3 {[%clk 0:00:23]} 67... e5 {[%clk 0:00:26.6]} 68. Ra3 {[%clk
0:00:23.9]} 68... Kg5 {[%clk 0:00:28]} 69. Ra8 {[%clk 0:00:23.6]} 69... Rb1
{[%clk 0:00:28.8]} 70. Rg8+ {[%clk 0:00:24.2]} 70... Kf6 {[%clk 0:00:30.2]} 71.
Rf8+ {[%clk 0:00:25.4]} 71... Kg6 {[%clk 0:00:30.6]} 72. Rg8+ {[%clk 0:00:26.5]}
72... Kf7 {[%clk 0:00:32.1]} 73. Ra8 {[%clk 0:00:27.2]} 73... Rb3+ {[%clk
0:00:33.4]} 74. Kf2 {[%clk 0:00:28.6]} 74... Kf6 {[%clk 0:00:33.9]} 75. Rf8+
{[%clk 0:00:28.6]} 75... Kg6 {[%clk 0:00:35.3]} 76. Rg8+ {[%clk 0:00:29.9]}
76... Kf7 {[%clk 0:00:36.5]} 77. Ra8 {[%clk 0:00:30.7]} 77... e4 {[%clk
0:00:37.8]} 78. Rc8 {[%clk 0:00:30.7]} 78... Ke6 {[%clk 0:00:38.4]} 79. Re8+
{[%clk 0:00:30.8]} 79... Kf7 {[%clk 0:00:38]} 80. Rc8 {[%clk 0:00:30.4]} 80...
Ra3 {[%clk 0:00:38.5]} 81. Rb8 {[%clk 0:00:29.9]} 81... Rf3+ {[%clk 0:00:39.4]}
82. Kg2 {[%clk 0:00:30.5]} 82... Ke6 {[%clk 0:00:39.9]} 83. Re8+ {[%clk
0:00:28.8]} 83... Kd5 {[%clk 0:00:40.3]} 84. Rd8+ {[%clk 0:00:28.7]} 84... Kc4
{[%clk 0:00:41.4]} 85. Rd7 {[%clk 0:00:26.7]} 85... Ra3 {[%clk 0:00:40.1]} 86.
Rf7 {[%clk 0:00:24.2]} 86... Ra2+ {[%clk 0:00:40.7]} 87. Kf1 {[%clk 0:00:24.6]}
87... Ra5 {[%clk 0:00:34.9]} 88. Kf2 {[%clk 0:00:25.6]} 88... Kd4 {[%clk
0:00:36]} 89. Rd7+ {[%clk 0:00:23.8]} 89... Rd5 {[%clk 0:00:36]} 90. Rb7 {[%clk
0:00:21.1]} 90... Kd3 {[%clk 0:00:31.7]} 91. Rb3+ {[%clk 0:00:21.1]} 91... Kc4
{[%clk 0:00:33]} 92. Rb8 {[%clk 0:00:21.6]} 92... Kc3 {[%clk 0:00:31.4]} 93. Ke3
{[%clk 0:00:20.4]} 93... Rd3+ {[%clk 0:00:32.4]} 94. Kf4 {[%clk 0:00:20.2]}
94... Rf3+ {[%clk 0:00:33.4]} 95. Ke5 {[%clk 0:00:20.9]} 95... e3 {[%clk
0:00:34.5]} 96. Rc8+ {[%clk 0:00:21.7]} 96... Kd2 {[%clk 0:00:35.4]} 97. Rd8+
{[%clk 0:00:21.1]} 97... Ke1 {[%clk 0:00:36.7]} 98. Kd4 {[%clk 0:00:21.3]} 98...
e2 {[%clk 0:00:37.6]} 99. Re8 {[%clk 0:00:21.2]} 99... Kf1 {[%clk 0:00:38.9]}
0-1

[Event "*** Titled Tuesday Blitz"]
[Site "Chess.com"]
[Date "2019.07.02"]
[Round "8"]
[White "amylazy"]
[Black "EndgameGrinder"]
[Result "0-1"]
[WhiteElo "2415"]
[BlackElo "2571"]
[TimeControl "180+2"]
[EndTime "14:43:57 PDT"]
[Termination "EndgameGrinder won by resignation"]

1. d4 {[%clk 0:02:56.1]} 1... Nf6 {[%clk 0:03:00.6]} 2. Nf3 {[%clk 0:02:47.9]}
2... c5 {[%clk 0:03:00.2]} 3. d5 {[%clk 0:02:48.4]} 3... e6 {[%clk 0:02:58.2]}
4. dxe6 {[%clk 0:02:47.6]} 4... fxe6 {[%clk 0:02:57.9]} 5. c4 {[%clk 0:02:47.7]}
5... d5 {[%clk 0:02:57.6]} 6. cxd5 {[%clk 0:02:48.2]} 6... exd5 {[%clk
0:02:58.5]} 7. e3 {[%clk 0:02:46.9]} 7... Be7 {[%clk 0:02:58.9]} 8. Bb5+ {[%clk
0:02:47.2]} 8... Nc6 {[%clk 0:02:55.4]} 9. O-O {[%clk 0:02:46.9]} 9... O-O
{[%clk 0:02:56.4]} 10. h3 {[%clk 0:02:33.5]} 10... Ne4 {[%clk 0:02:46.8]} 11.
Nc3 {[%clk 0:02:32.8]} 11... Nxc3 {[%clk 0:02:46.5]} 12. bxc3 {[%clk 0:02:33.4]}
12... Be6 {[%clk 0:02:47.1]} 13. Rb1 {[%clk 0:02:32.2]} 13... Qe8 {[%clk
0:02:35.3]} 14. Ne5 {[%clk 0:02:30.3]} 14... Bd6 {[%clk 0:02:24.8]} 15. Bxc6
{[%clk 0:02:29.1]} 15... bxc6 {[%clk 0:02:24]} 16. Ng4 {[%clk 0:02:21.3]} 16...
h5 {[%clk 0:02:16.9]} 17. Nh2 {[%clk 0:02:22.1]} 17... Qg6 {[%clk 0:02:15.5]}
18. Rb7 {[%clk 0:02:09.9]} 18... Bxh3 {[%clk 0:02:14.5]} 19. g3 {[%clk
0:02:09.7]} 19... Bxg3 {[%clk 0:02:10.2]} 20. Kh1 {[%clk 0:02:05]} 20... Bxh2
{[%clk 0:02:09.2]} 0-1